bitfinex/quotes_ETHUSD_20251224
["timestamp","ask_amount","ask_price","bid_price","bid_amount"]
[1766604264646,0.03503227,2939.2,2938.7,0.03402865]
[1766604265948,1.0193,2939.2,2938.7,0.03402865]
[1766604266343,1.0193,2939.2,2938.6,4.29491209]
[1766604266644,1.0193,2939.2,2938.7,0.42969121]
[1766604266849,1.0193,2939.2,2938.8,0.03402749]
[1766604267346,1.0193,2939.2,2938.7,0.42969121]
[1766604267944,1.0193,2939.2,2938.7,3.83250738]
[1766604268145,1.0193,2939.2,2938.8,0.03402749]
[1766604268349,1.0193,2939.2,2938.8,0.85017088]
[1766604269645,1.0193,2939.2,2938.8,4.25284732]
[1766604271330,1.07403227,2939.5,2938.8,4.25284732]
[1766604277557,1.07403227,2939.5,2938.8,7.65559674]
[1766604277854,1.07403227,2939.5,2938.8,7.62156925]
[1766604278054,1.07403227,2939.5,2938.9,0.03402633]
[1766604279757,1.07403227,2939.5,2938.9,3.43659855]
[1766604281250,0.03503227,2939.5,2938.9,3.43659855]
[1766604285566,0.03503227,2939.5,2938.9,9.07689293]
[1766604285859,0.17765778,2939.8,2939.2,4.8317762]
[1766604286053,1.9135,2940.0,2939.3,3.43607881]
[1766604286959,0.001,2939.5,2939.3,3.43607881]
[1766604287841,0.002,2940.0,2939.3,6.83824939]
[1766604288044,0.002,2940.0,2939.4,1.16700256]
[1766604288248,0.002,2940.0,2939.5,3.43595849]
[1766604289363,0.002,2940.0,2939.5,0.03401939]
[1766604293196,1.0215,2940.0,2939.5,0.03401939]
[1766604293688,0.03403227,2939.9,2939.5,0.03401939]
[1766604294387,0.03403227,2939.9,2939.5,0.03501939]
[1766604295450,0.03403227,2939.9,2939.5,0.49543416]
[1766604300392,0.03403227,2939.9,2939.5,0.03501939]
[1766604300875,1.05353227,2939.9,2939.5,0.03501939]
[1766604301272,1.05353227,2939.9,2939.5,0.001]
[1766604302777,1.0146,2939.8,2939.0,3.40248718]
[1766604303075,3.43550904,2939.9,2939.0,3.40248718]
[1766604303076,1.0146,2939.6,2939.1,0.03402402]
[1766604303466,0.03403227,2939.5,2939.1,0.03402402]
[1766604305920,0.1776072,2938.7,2938.5,0.002]
[1766604306107,7.2e-06,2938.7,2938.5,0.002]
[1766604306284,1.0146072,2938.7,2938.5,0.002]
[1766604306485,7.2e-06,2938.7,2938.5,0.002]
[1766604306724,1.0146,2939.0,2938.5,0.002]
[1766604307021,2.07173147,2939.0,2938.5,0.002]
[1766604308413,2.61914824,2939.0,2938.5,0.002]
[1766604309416,1.60454824,2939.0,2938.5,0.002]
[1766604309718,0.13620753,2938.9,2938.5,0.002]
[1766604309939,0.04253436,2938.8,2938.5,0.002]
[1766604311330,0.13620753,2938.9,2938.5,0.002]
[1766604311832,1.56201677,2939.0,2938.5,0.002]
[1766604312002,0.04253292,2938.9,2938.5,0.002]
[1766604312336,1.0146,2939.3,2938.5,5.7257762]
[1766604312633,0.02555629,2939.2,2938.6,0.03402981]
[1766604312931,0.02555629,2939.2,2938.6,3.43693636]
[1766604313834,1.0146,2939.1,2938.6,3.43693636]
[1766604314035,1.0146,2938.8,2938.5,0.002]
[1766604314234,0.62717343,2938.7,2938.5,0.002]
[1766604314404,0.04253581,2938.7,2938.5,0.002]
[1766604315035,1.05713581,2938.7,2938.5,0.002]
[1766604319443,0.04253581,2938.7,2938.5,0.002]
[1766604319642,0.04253436,2938.8,2938.5,0.002]
[1766604321255,4.89644714,2939.2,2938.5,0.002]
[1766604321256,4.41670133,2939.4,2938.6,0.892]
[1766604321455,1.0146,2939.4,2938.7,0.03402865]
[1766604325627,1.0316861,2939.3,2938.7,0.03402865]
[1766604325957,1.09635704,2939.3,2938.7,0.03402865]
[1766604328051,3.48394093,2939.3,2938.7,0.03402865]
[1766604328349,1.0146,2939.2,2938.7,0.03402865]
[1766604328551,0.0170861,2939.1,2938.7,0.03402865]
[1766604330454,0.0170861,2939.1,2938.7,0.46713487]
[1766604332353,1.1023861,2939.1,2938.7,0.03402865]
[1766604336964,1.1023861,2939.1,2938.6,0.894]
[1766604338363,1.1023861,2939.1,2938.6,0.002]
[1766604338742,1.16705704,2939.1,2938.6,0.002]
[1766604339266,1.16805704,2939.1,2938.6,0.002]
[1766604340842,1.16805704,2939.1,2938.6,0.03602981]
[1766604341045,1.16805704,2939.1,2938.6,0.46934453]
[1766604341553,1.0531,2939.8,2939.0,4.8317762]
[1766604341753,1.0531,2939.8,2939.1,0.92602402]
[1766604343292,0.06467094,2939.7,2939.1,0.92602402]
[1766604343595,1.11777094,2939.7,2939.1,0.892]
[1766604344482,1.11777094,2939.7,2939.1,1.32146145]
[1766604344888,1.11777094,2939.7,2939.2,0.03402286]
[1766604347277,1.11777094,2939.7,2939.1,1.32146145]
[1766604347455,1.11877094,2939.7,2939.1,1.32146145]
[1766604347886,0.17761874,2939.6,2939.1,1.32146145]
[1766604348058,0.17761874,2939.6,2939.2,0.47239217]
[1766604348258,0.17761874,2939.6,2939.3,0.0340217]
[1766604352607,1.23071874,2939.6,2939.1,0.892]
[1766604353894,1.0531,2939.4,2939.1,0.892]
[1766604354074,0.06467094,2939.3,2939.1,0.892]
[1766604354393,1.11777094,2939.3,2939.1,0.892]
[1766604357912,1.11777094,2939.3,2938.6,0.002]
[1766604357913,1.0531,2939.0,2938.6,0.002]
[1766604358395,0.06467094,2939.1,2938.6,0.002]
[1766604358396,1.11777094,2938.9,2938.6,0.002]
[1766604359198,0.06467094,2938.9,2938.6,0.002]
[1766604361925,1.0863,2938.8,2938.6,0.002]
[1766604364116,1.0863,2939.0,2938.6,0.002]
[1766604367534,1.88186785,2939.0,2938.6,0.002]
[1766604368707,1.0863,2938.9,2938.6,0.002]
[1766604369295,1.15097094,2938.9,2938.6,0.002]
[1766604369488,1.0863,2938.8,2938.6,0.002]
[1766604369713,1.15097094,2938.8,2938.3,0.002]
[1766604370015,1.0863,2938.6,2938.3,0.002]
[1766604370801,1.0863,2938.6,2938.5,0.002]
[1766604371317,1.0863,2938.9,2938.5,0.002]
[1766604378036,0.13721403,2939.1,2938.5,0.03603096]
[1766604378037,0.001,2939.1,2938.5,0.03603096]
[1766604378241,0.001,2939.1,2938.5,0.72049957]
[1766604378538,0.001,2939.1,2938.6,0.892]
[1766604378840,0.001,2939.1,2938.7,0.03402865]
[1766604383629,0.001,2939.1,2938.7,3.43685611]
[1766604386423,0.001,2939.1,2938.7,6.83972132]
[1766604386643,0.001,2939.1,2938.8,0.77317213]
[1766604386799,0.001,2939.1,2938.9,0.03402633]
[1766604391209,0.001,2939.1,2938.9,3.43662545]
[1766604391607,1.0863,2939.5,2938.9,3.43662545]
[1766604391840,0.002,2939.6,2938.9,3.43662545]
[1766604392028,0.002,2939.6,2939.0,0.7612446]
[1766604392341,0.002,2939.6,2939.1,0.03402402]
[1766604392513,1.1156,2939.6,2939.1,0.03402402]
[1766604393140,0.001,2939.1,2939.0,0.03402517]
[1766604396550,0.001,2939.1,2939.0,3.43654303]
[1766604396837,0.001,2939.1,2939.0,4.19777446]
[1766604397944,0.001,2939.1,2939.0,0.7952566]
[1766604398646,0.001,2939.1,2939.0,4.19777446]
[1766604399451,3.46615045,2939.9,2939.0,4.19777446]
[1766604399452,0.002,2940.0,2939.0,16.72615341]
[1766604399607,1.0877,2940.3,2939.5,4.83134323]
[1766604399608,1.0867,2940.2,2939.5,4.83134323]
[1766604399808,1.0867,2940.2,2939.6,0.03401823]
[1766604400239,1.0867,2940.2,2939.5,0.03401939]
[1766604400446,1.0867,2940.1,2939.4,0.892]
[1766604401244,1.0867,2940.0,2939.4,0.892]
[1766604401443,1.0867,2939.9,2939.4,0.892]
[1766604401741,1.0867,2939.9,2939.3,3.40208304]
[1766604402517,1.0867,2939.9,2939.2,4.29427978]
[1766604402518,1.0867,2939.9,2939.4,3.4020537]
[1766604402717,1.0867,2939.9,2939.3,3.4021074]
[1766604403121,1.0867,2939.9,2939.4,3.40198688]
[1766604403325,1.0867,2939.9,2939.3,3.40217058]
[1766604403524,0.06467094,2940.1,2939.4,0.76964214]
[1766604403720,0.06467094,2940.1,2939.4,0.80366268]
[1766604403966,1.15137094,2940.1,2939.4,0.80366268]
[1766604405775,1.15137094,2940.1,2939.5,3.4019391]
[1766604405974,1.15137094,2940.1,2939.6,0.03401823]
[1766604406767,1.15137094,2940.1,2939.5,0.03401939]
[1766604407879,1.0877,2940.1,2939.6,3.40182337]
[1766604408078,1.0877,2940.1,2939.7,0.03401707]
[1766604408283,1.0877,2940.1,2939.6,0.03401823]
[1766604408494,1.0877,2940.1,2939.6,0.71781088]
[1766604410195,1.0877,2940.1,2939.6,4.11962106]
[1766604410385,0.001,2940.1,2939.6,4.11962106]
[1766604411594,1.0877,2940.1,2939.6,0.71781088]
[1766604411792,1.0877,2940.1,2939.6,0.03401823]
[1766604413805,1.0877,2940.1,2939.5,0.03401939]
[1766604414163,1.0877,2940.1,2939.5,3.43594826]
[1766604415597,1.0877,2940.1,2939.5,3.43694826]
[1766604417909,1.0877,2940.1,2939.5,0.001]
[1766604418113,1.0867,2940.0,2939.5,0.001]
[1766604418314,1.0867,2939.8,2939.3,0.0340217]
[1766604419288,1.0867,2939.8,2939.2,0.892]
[1766604419469,1.0867,2939.6,2939.0,0.002]
[1766604419675,1.0867,2939.4,2939.0,3.4045154]
[1766604419978,1.0867,2939.4,2939.1,0.03402402]
[1766604420189,1.0867,2939.4,2939.0,0.002]
[1766604422216,1.0867,2939.4,2939.0,0.03602517]
[1766604423015,1.0867,2939.4,2939.0,0.002]
[1766604423215,1.0351,2939.3,2939.0,0.002]
[1766604426037,1.0351,2939.4,2938.3,0.002]
[1766604426239,1.0351,2939.1,2938.3,0.002]
[1766604426831,1.0351,2938.9,2938.3,0.002]
[1766604427837,1.0351,2938.7,2938.3,0.002]
[1766604427996,0.04253726,2938.6,2938.1,0.001]
[1766604428204,1.0351,2938.5,2938.1,0.001]
[1766604437531,0.06467094,2939.0,2938.1,0.001]
[1766604437739,1.09977094,2938.8,2938.1,0.001]
[1766604438233,1.0351,2938.8,2938.1,0.001]
[1766604438415,1.0351,2938.8,2938.1,1.16508203]
[1766604438617,1.0351,2938.8,2938.2,0.01705282]
[1766604439230,1.0351,2938.8,2938.2,3.42042568]
[1766604442237,0.001,2939.3,2938.3,3.684294]
[1766604442425,0.001,2940.1,2939.2,4.82955865]
[1766604442426,1.0351,2939.8,2939.2,4.82955865]
[1766604442739,1.0351,2939.8,2939.3,0.51697757]
[1766604442903,1.0351,2939.8,2938.8,5.72155865]
[1766604443109,1.0351,2939.8,2939.1,1.02118099]
[1766604443336,1.0351,2939.8,2939.2,0.03402286]
[1766604444318,1.0351,2939.8,2939.3,3.40217058]
[1766604444638,1.0351,2939.8,2939.4,0.03402054]
[1766604444836,0.02549457,2939.7,2939.1,4.4235344]
[1766604445134,1.0351,2939.6,2939.1,3.84470685]
[1766604447039,1.0351,2939.6,2939.2,0.03402286]
[1766604448863,1.0351,2939.6,2939.3,3.40217058]
[1766604449051,1.0351,2939.6,2939.4,0.03402054]
[1766604451551,1.0351,2939.6,2939.3,3.43618528]
[1766604452144,1.0361,2939.6,2939.3,3.43618528]
[1766604452518,1.0361,2939.6,2939.3,0.0340217]
[1766604452933,0.001,2939.6,2939.3,3.43615009]
[1766604455046,0.001,2939.6,2939.3,0.0340217]
[1766604455460,0.001,2939.6,2939.2,3.40222972]
[1766604455661,0.001,2939.6,2939.3,0.0340217]
[1766604457161,0.001,2939.6,2939.3,3.43615279]
[1766604457341,0.001,2939.6,2939.3,0.0340217]
[1766604460368,0.001,2939.6,2939.3,3.43618527]
[1766604460744,0.001,2939.6,2939.3,3.43718527]
[1766604463887,0.001,2939.6,2939.3,0.0350217]
[1766604466082,0.001,2939.6,2939.3,3.43717768]
[1766604470787,0.001,2939.6,2939.3,0.0350217]
[1766604471097,1.1117,2939.6,2939.3,0.0350217]
[1766604471295,1.1117,2939.6,2939.3,0.001]
[1766604479002,1.1107,2939.4,2938.7,6.80573042]
[1766604481804,1.1107,2939.4,2938.6,6.80596202]
[1766604482808,1.1107,2939.4,2938.6,6.80696202]
[1766604483317,0.06467094,2939.5,2938.6,3.40398101]
[1766604483318,1.1125,2939.2,2938.6,3.40398101]
[1766604483501,1.1125,2939.2,2938.7,0.03402865]
[1766604483927,1.1125,2939.2,2938.8,3.40274942]
[1766604484129,1.1125,2939.2,2938.9,0.03402633]
[1766604484331,1.13799457,2939.2,2938.9,0.03402633]
[1766604484497,1.20266551,2939.2,2938.9,0.03402633]
[1766604485751,1.20266551,2939.2,2938.8,0.03402749]
[1766604487342,1.20266551,2939.2,2938.8,3.43677637]
[1766604488242,2.09466551,2939.2,2938.8,3.43677637]
[1766604488449,2.06917094,2939.2,2938.8,3.43677637]
[1766604490225,2.06917094,2939.2,2938.8,3.43877637]
[1766604491963,0.892,2939.4,2938.8,7.52578898]
[1766604492132,0.892,2939.4,2938.8,7.49176149]
[1766604493070,0.893,2939.6,2938.8,7.49176149]
[1766604493371,0.06467094,2939.8,2938.9,0.03402633]
[1766604493754,0.06467094,2939.8,2939.0,6.80503572]
[1766604494074,0.001,2940.1,2939.2,4.83095575]
[1766604494282,0.06467094,2940.0,2939.3,0.0340217]
[1766604495353,0.001,2940.1,2939.3,0.9260217]
[1766604496058,0.001,2940.1,2939.4,3.40205484]
[1766604496259,1.1135,2940.1,2939.5,0.03401939]
[1766604498172,1.1135,2940.1,2939.6,3.40182337]
[1766604498378,1.1135,2940.1,2939.7,0.03401707]
[1766604498949,1.1135,2940.1,2939.6,0.03401823]
[1766604501785,1.1135,2940.1,2939.6,4.11957671]
[1766604502581,1.1135,2940.1,2939.6,7.52140008]
[1766604502786,1.1135,2940.1,2939.6,4.08555848]
[1766604502996,1.1135,2940.1,2939.6,4.11957671]
[1766604504490,0.001,2940.1,2939.6,4.11957671]
[1766604504799,0.001,2940.1,2939.7,0.75214828]
[1766604504956,0.001,2940.1,2939.8,0.03401591]
[1766604513859,0.001,2940.1,2939.7,0.03401707]
[1766604516489,0.001,2940.1,2939.7,3.4357084]
[1766604516686,1.1135,2940.3,2939.7,3.4357084]
[1766604516861,1.1135,2940.3,2939.7,4.1195587]
[1766604517460,0.001,2940.3,2939.7,4.1195587]
[1766604517666,0.06567094,2940.5,2939.7,11.814974]
[1766604517885,0.06567094,2940.5,2939.7,8.37924928]
[1766604519196,0.06567094,2940.5,2939.8,0.03401591]
[1766604519485,0.06567094,2940.5,2939.9,0.84132652]
[1766604519790,0.001,2940.5,2940.0,0.0340136]
[1766604521389,0.001,2940.5,2940.1,3.40124485]
[1766604521592,0.001,2940.5,2940.2,0.03401129]
[1766604522292,0.001,2940.5,2940.1,0.03401244]
[1766604522495,0.001,2940.5,2940.1,0.80182324]
[1766604523190,0.001,2940.5,2940.1,4.20299895]
[1766604523362,0.001,2940.5,2940.1,0.7678108]
[1766604523564,1.0531,2940.5,2940.0,3.40135816]
[1766604524593,1.0531,2940.5,2940.0,3.35135816]
[1766604525265,1.0531,2940.5,2940.1,3.40123704]
[1766604525693,1.0531,2940.5,2940.0,3.40129678]
[1766604526895,1.0531,2940.5,2939.9,3.40141219]
[1766604527075,1.0531,2940.5,2939.9,4.23929583]
[1766604528768,1.0531,2940.5,2939.9,7.64077207]
[1766604532604,1.0531,2940.5,2940.0,0.0340136]
[1766604533707,1.0531,2940.5,2940.1,3.40124485]
[1766604534013,1.0531,2940.5,2940.2,0.03401129]
[1766604534378,0.001,2940.5,2940.2,0.03401129]
[1766604538004,0.002,2940.6,2940.2,3.43513696]
[1766604538205,0.001,2940.7,2940.2,3.43513696]
[1766604538509,0.001,2940.7,2940.2,4.26147009]
[1766604539278,0.06567094,2940.7,2940.2,3.43513696]
[1766604540606,0.001,2940.7,2940.2,3.43513696]
[1766604541918,0.001,2940.7,2940.2,0.03401129]
[1766604542083,0.06567094,2940.7,2940.2,0.03401129]
[1766604542405,0.001,2940.7,2940.2,3.43514046]
[1766604542591,0.001,2940.8,2940.3,0.91553348]
[1766604542788,0.001,2940.8,2940.4,0.03400897]
[1766604544309,0.001,2940.8,2940.4,3.43480852]
[1766604546211,1.055,2940.6,2940.1,0.892]
[1766604546418,1.055,2940.6,2940.2,0.03401129]
[1766604546616,0.06467094,2940.5,2940.2,0.03401129]
[1766604547316,0.06467094,2940.5,2940.1,0.892]
[1766604547615,1.11967094,2940.5,2940.0,0.0340136]
[1766604551621,1.11967094,2940.5,2939.9,3.40247496]
[1766604551827,1.11967094,2940.5,2940.0,3.43535725]
[1766604552230,1.11967094,2940.5,2940.0,0.0340136]
[1766604553230,1.11967094,2940.5,2940.0,3.43535995]
[1766604554024,1.055,2940.5,2940.0,3.43535995]
[1766604554233,1.055,2940.5,2940.0,0.0340136]
[1766604554521,1.055,2940.5,2939.9,3.43640049]
[1766604554723,1.057,2940.5,2940.0,3.40135767]
[1766604555206,1.057,2940.5,2940.1,0.03401244]
[1766604558035,1.057,2940.5,2940.1,3.43525364]
[1766604558334,1.057,2940.5,2940.1,0.03401244]
[1766604558534,1.057,2940.5,2940.0,3.43530928]
[1766604558706,0.002,2940.5,2940.1,3.40123556]
[1766604558906,0.06467094,2940.6,2940.1,3.40123556]
[1766604559408,1.11967094,2940.6,2940.1,3.40122489]
[1766604559826,1.055,2940.6,2940.0,3.43531088]
[1766604561542,1.055,2940.6,2940.0,6.83667142]
[1766604561833,1.055,2940.6,2940.0,0.68376714]
[1766604562042,1.055,2940.6,2940.1,0.03401244]
[1766604565524,1.055,2940.6,2940.1,3.43523769]
[1766604566543,1.055,2940.6,2940.1,0.03401244]
[1766604567142,1.055,2940.4,2940.1,0.03401244]
[1766604567438,0.002,2940.7,2940.1,6.8364911]
[1766604567637,0.002,2940.7,2940.2,1.25576854]
[1766604567638,1.057,2940.7,2940.2,1.25576854]
[1766604568225,1.057,2940.7,2940.1,3.40123381]
[1766604568954,1.057,2940.7,2940.2,0.03401129]
[1766604569738,1.057,2940.7,2940.1,3.40123381]
[1766604570654,1.057,2940.7,2940.1,3.40223381]
[1766604571356,1.057,2940.7,2940.2,3.40112081]
[1766604572358,1.057,2940.7,2940.1,3.40222967]
[1766604572652,1.057,2940.7,2940.1,4.17199632]
[1766604573464,0.002,2941.7,2940.6,4.8281943]
[1766604573632,1.0313,2941.7,2940.9,4.8281943]
[1766604573828,1.09397094,2941.6,2941.0,0.03400204]
[1766604575674,1.0293,2941.6,2941.0,0.03400204]
[1766604576437,1.0293,2941.6,2941.0,3.43416446]
[1766604578770,1.0313,2941.6,2941.0,3.43416446]
[1766604580275,1.0313,2941.6,2941.1,0.891]
[1766604580487,0.002,2941.6,2941.2,0.03399972]
[1766604581004,0.002,2941.6,2941.2,3.43390066]
[1766604585296,0.002,2941.6,2941.2,0.03399972]
[1766604585597,1.0875,2941.6,2941.2,0.03399972]
[1766604585897,1.0875,2941.6,2941.2,0.53484905]
[1766604586195,1.0875,2941.6,2941.1,0.891]
[1766604587110,1.0875,2941.6,2940.8,3.40040353]
[1766604587401,1.0855,2941.4,2940.9,0.03400319]
[1766604587608,1.0855,2941.4,2940.9,3.43427207]
[1766604592098,1.0855,2941.4,2940.9,3.43527207]
[1766604594412,1.0855,2941.4,2940.9,4.11885187]
[1766604594584,1.0875,2941.6,2940.9,8.4101715]
[1766604594922,1.0875,2941.6,2940.9,8.37616831]
[1766604595092,1.0875,2941.6,2941.0,0.03400204]
[1766604597512,1.0855,2941.6,2941.0,3.43410405]
[1766604597714,0.002,2941.7,2941.2,0.0593]
[1766604597914,0.002,2941.7,2941.3,0.09329857]
[1766604599229,0.06467094,2942.2,2941.3,0.09329857]
[1766604599230,1.92257891,2945.7,2944.2,0.88735096]
[1766604599529,0.06467094,2946.0,2945.7,1.85790797]
[1766604599826,1.15017094,2944.9,2944.8,0.891]
[1766604600028,0.06467094,2944.3,2944.2,0.88735096]
[1766604600197,0.06467094,2944.5,2943.9,10.19054512]
[1766604600519,0.061133,2944.9,2944.8,4.77308508]
[1766604600718,0.061133,2945.1,2944.7,4.77308508]
[1766604600904,0.061133,2945.0,2944.7,4.77308508]
[1766604601105,0.061133,2945.2,2945.0,0.061133]
[1766604601417,0.061133,2944.9,2944.6,1.0651]
[1766604601591,0.061133,2944.9,2944.7,3.39593167]
[1766604601781,0.061133,2944.5,2944.2,0.13592427]
[1766604601981,0.061133,2944.7,2944.2,0.13592427]
[1766604601982,0.25163958,2944.4,2944.2,0.13592427]
[1766604602232,0.19050658,2944.4,2944.2,0.13592427]
[1766604602526,0.06453147,2944.3,2944.2,0.13592427]
[1766604603035,0.00339847,2944.4,2944.2,0.13592427]
[1766604603825,0.06453147,2944.3,2944.2,0.13592427]
[1766604604425,0.00339847,2944.4,2944.2,0.13592427]
[1766604604600,0.06453147,2944.3,2944.2,0.16988935]
[1766604604784,0.06453147,2944.3,2943.8,3.39696434]
[1766604604785,0.06453147,2944.3,2944.1,0.03396623]
[1766604604991,0.06453147,2944.3,2943.2,0.891]
[1766604604992,0.06453147,2943.9,2943.2,0.891]
[1766604605291,0.06453147,2943.9,2943.7,0.13596123]
[1766604605503,0.06453147,2943.8,2943.7,0.13596123]
[1766604605701,0.06453147,2943.8,2943.7,0.16993208]
[1766604606005,0.06453147,2943.8,2943.7,3.56701738]
[1766604606920,0.002,2943.9,2943.7,3.56701738]
[1766604607900,0.002,2943.9,2943.7,3.56361891]
[1766604608538,0.06794055,2944.2,2943.8,1.1149]
[1766604608750,4.055e-05,2944.2,2943.9,1.14886854]
[1766604609917,4.055e-05,2944.2,2943.9,4.54566478]
[1766604611244,0.06794055,2944.0,2943.9,0.03396854]
[1766604611445,0.06794055,2943.8,2943.7,0.13256276]
[1766604611633,0.06794055,2943.9,2943.3,1.1149]
[1766604611933,0.06794055,2943.9,2943.4,3.43131806]
[1766604611934,0.06794055,2943.7,2943.4,3.43131806]
[1766604612535,0.06794055,2943.9,2943.4,3.43131806]
[1766604615808,0.06794055,2943.7,2943.4,0.03397431]
[1766604616106,0.06794055,2943.7,2943.4,3.43139034]
[1766604616914,0.06794055,2943.7,2943.3,3.39749017]
[1766604617110,0.06794055,2943.7,2943.4,3.39742163]
[1766604617311,0.06794055,2943.7,2943.3,3.39749381]
[1766604617843,0.06794055,2943.7,2943.4,3.3974213]
[1766604618332,0.06794055,2943.7,2943.3,3.39749298]
[1766604619349,1.16854055,2943.5,2942.9,1.1149]
[1766604619510,0.06794055,2943.2,2942.6,1.1149]
[1766604619709,0.06794055,2943.2,2942.7,1.14888239]
[1766604619905,0.06794055,2943.2,2942.9,3.39799443]
[1766604620139,0.06794055,2943.2,2943.0,0.03397893]
[1766604621642,0.06794055,2943.2,2943.0,3.43283717]
[1766604621845,0.06794055,2943.2,2943.0,0.03497893]
[1766604626952,0.06794055,2943.2,2943.0,3.43282266]
[1766604628432,1.51844474,2943.6,2943.1,1.1149]
[1766604628631,1.16854055,2943.6,2943.2,0.03397662]
[1766604629950,0.03395931,2943.5,2943.2,0.03397662]
[1766604630131,1.16854055,2943.6,2943.2,0.03397662]
[1766604630970,0.06794055,2943.4,2943.2,0.03397662]
[1766604631833,0.06794055,2943.2,2943.0,0.001]
[1766604632635,0.06794055,2943.2,2943.0,0.01800908]
[1766604637976,1.26964055,2943.4,2943.0,3.41587555]
[1766604639276,0.06794055,2943.2,2943.0,0.01800908]
[1766604639472,1.29570844,2943.4,2942.6,1.1758]
[1766604639779,0.06794055,2943.2,2942.9,3.39800273]
[1766604640074,0.06794055,2943.2,2942.8,4.57386487]
[1766604641880,0.06794055,2943.2,2942.8,1.1758]
[1766604642068,0.06794055,2943.0,2942.4,0.891]
[1766604642263,0.06794055,2943.0,2942.6,3.3982942]
[1766604642583,0.06794055,2943.0,2942.6,4.5740942]
[1766604642881,0.06794055,2943.0,2942.6,3.3982942]
[1766604643093,0.06794055,2943.0,2942.7,1.1758]
[1766604643295,0.06794055,2943.2,2942.7,4.57403521]
[1766604645404,0.06794055,2943.0,2942.7,1.1758]
[1766604645894,0.06794055,2943.0,2942.7,4.57403682]
[1766604646598,0.06794055,2943.0,2942.6,0.001]
[1766604646599,0.06794055,2943.0,2942.6,3.39928938]
[1766604647067,0.06794055,2943.0,2942.6,4.57508938]
[1766604649498,0.04247222,2943.1,2942.7,1.1758]
[1766604649688,1.25324055,2943.2,2942.7,1.1758]
[1766604651209,1.25324055,2943.2,2942.8,3.39812423]
[1766604651877,0.06794055,2943.2,2942.8,1.1758]
[1766604654192,0.06994055,2943.2,2942.8,1.1758]
[1766604654379,0.06994055,2943.2,2942.8,4.57391229]
[1766604656198,0.06994055,2943.2,2942.8,4.57391218]
[1766604660616,0.06994055,2943.2,2942.8,1.1758]
[1766604661743,0.06994055,2943.2,2942.8,4.57389882]
[1766604662145,0.06994055,2943.2,2942.8,4.57489882]
[1766604670056,0.06994055,2943.2,2942.8,1.1768]
[1766604672120,0.06994055,2943.2,2942.8,4.57491525]
[1766604680080,0.06994055,2943.2,2942.0,1.2104]
[1766604680081,0.06794055,2942.8,2942.0,1.2104]
[1766604680234,0.06794055,2942.8,2942.1,1.2104]
[1766604680727,0.06794055,2943.0,2942.3,1.2104]
[1766604680927,0.04247222,2943.1,2942.3,1.2104]
[1766604681723,0.06794055,2943.0,2942.4,6.79717236]
[1766604681930,0.06794055,2943.0,2942.5,1.2104]
[1766604684162,0.06794055,2943.0,2942.6,3.39835519]
[1766604684535,0.04247222,2943.1,2942.7,1.2104]
[1766604684732,0.002,2943.2,2942.8,4.81959835]
[1766604684949,0.06794055,2943.5,2942.9,1.2104]
[1766604685963,0.04246789,2943.4,2942.9,1.2104]
[1766604686536,0.04246789,2943.4,2943.0,3.3978933]
[1766604686742,0.04246789,2943.4,2943.0,4.6082933]
[1766604687928,0.06794055,2943.5,2943.0,4.6082933]
[1766604688354,0.06794055,2943.5,2943.1,1.2104]
[1766604688559,0.11040411,2943.7,2943.2,1.2104]
[1766604692554,1.0212725,2943.7,2943.2,1.2104]
[1766604693162,4.41836331,2943.7,2943.2,1.2104]
[1766604693368,5.69616331,2943.7,2943.2,1.2104]
[1766604693548,0.06794055,2943.5,2943.2,1.2104]
[1766604695064,5.69816331,2943.7,2942.9,4.59174512]
[1766604695065,0.06794055,2943.6,2942.9,4.59174512]
[1766604695260,0.06794055,2943.4,2942.9,5.48274512]
[1766604695660,0.06794055,2943.4,2943.0,1.1938]
[1766604696367,1.91934188,2943.6,2943.0,3.39787581]
[1766604696569,1.91934188,2943.6,2943.1,1.1938]
[1766604699450,0.64154188,2943.6,2943.1,1.1938]
[1766604699653,0.49515251,2943.5,2943.1,1.1938]
[1766604699847,0.64154188,2943.6,2943.1,1.1938]
[1766604702394,0.64354188,2943.6,2943.1,1.1938]
[1766604703007,1.92824188,2943.6,2943.1,1.1938]
[1766604706389,5.32544295,2943.6,2943.1,1.1938]
[1766604707598,1.92824188,2943.6,2943.1,1.1938]
[1766604709512,0.17711256,2943.5,2943.1,1.1938]
[1766604716718,1.92824188,2943.6,2943.1,1.1938]
[1766604716918,0.53273859,2943.5,2943.1,1.1938]
[1766604718185,0.11240555,2943.6,2943.1,1.1938]
[1766604721424,1.35580555,2943.6,2943.1,1.1938]
[1766604721719,1.31134055,2943.4,2942.9,0.001]
[1766604725713,0.04246933,2943.3,2942.9,0.001]
[1766604725888,1.28586933,2943.3,2942.9,0.001]
[1766604726322,0.47511336,2943.3,2942.9,1.3025]
[1766604726622,1.31334055,2943.6,2942.9,1.3025]
[1766604726791,0.04446645,2943.5,2942.9,1.3025]
[1766604727309,0.002,2943.5,2942.9,1.3025]
[1766604728105,0.04446645,2943.5,2942.9,4.70050751]
[1766604728312,0.06794055,2943.4,2942.9,4.70050751]
[1766604728620,0.55023544,2943.4,2942.9,4.70050751]
[1766604729499,0.55023544,2943.4,2942.9,0.001]
[1766604729700,0.55023544,2943.4,2943.0,1.3015]
[1766604731500,0.48229489,2943.4,2943.0,1.3015]
[1766604731684,0.002,2943.5,2943.0,1.3015]
[1766604731889,0.06794055,2943.4,2943.0,1.3015]
[1766604732825,0.06994055,2943.6,2943.1,1.3015]
[1766604733489,0.04246645,2943.5,2943.1,1.3015]
[1766604733689,0.06794055,2943.4,2943.1,1.3015]
[1766604737119,1.35580555,2943.6,2943.1,1.3015]
[1766604737416,0.47549007,2943.5,2943.1,1.3015]
[1766604737621,0.06994055,2943.6,2943.1,1.3015]
[1766604739522,0.06994055,2943.6,2943.1,4.69927394]
[1766604742524,0.06794055,2943.5,2943.1,1.3015]
[1766604747328,0.002,2943.6,2943.1,1.3015]
[1766604747535,1.2434,2943.5,2943.0,3.39887965]
[1766604747905,1.2434,2943.5,2943.0,4.70037965]
[1766604748106,0.002,2943.6,2943.0,4.70037965]